bitfinex/quotes_ETHUSD_20220309
["timestamp","ask_amount","ask_price","bid_price","bid_amount"]
[1646804935908,1.1134683,2707.5,2706.8,1.63925186]
[1646804936111,1.1134683,2707.5,2707.4,0.0060093]
[1646804936548,0.92376,2707.7,2707.4,0.0060093]
[1646804936949,0.92376,2707.7,2706.9,0.00290015]
[1646804937150,0.92376,2707.7,2707.4,0.0060093]
[1646804937553,1.17906521,2707.5,2707.4,0.0060093]
[1646804938154,0.00333399,2707.3,2706.8,0.2590059]
[1646804938355,0.00333399,2707.3,2706.9,0.33366993]
[1646804938555,0.00333399,2707.3,2706.9,0.35771154]
[1646804938756,0.00333399,2707.3,2707.0,0.33366993]
[1646804939559,0.00333399,2707.3,2707.1,0.33366993]
[1646804939758,0.00333399,2707.3,2706.8,0.2590059]
[1646804939959,0.00333399,2707.3,2706.9,0.3337083]
[1646804941100,0.00333399,2707.3,2706.9,0.2837083]
[1646804941302,0.00333399,2707.3,2706.8,0.0745059]
[1646804943204,0.00333399,2707.3,2706.9,0.00654263]
[1646804944155,0.00333399,2707.3,2706.8,0.0745059]
[1646804944355,0.00333399,2707.3,2707.0,0.00654252]
[1646804945356,0.00333399,2707.3,2706.8,0.0745059]
[1646804945556,0.00333399,2707.3,2707.0,0.00654241]
[1646804946559,0.00333399,2707.3,2706.8,0.0745059]
[1646804946957,0.00333399,2707.3,2707.0,0.00654241]
[1646804947797,0.00333399,2707.3,2706.8,0.0745059]
[1646804951462,4.67906521,2707.5,2706.8,0.0745059]
[1646804951463,0.55826452,2707.6,2706.8,0.0745059]
[1646804951648,2.09045,2707.9,2706.9,0.0065375]
[1646804951852,3.5,2707.8,2706.9,0.0065375]
[1646804952048,1.1667,2707.9,2706.9,0.0065375]
[1646804952649,1.11297101,2707.7,2707.0,1.13063106]
[1646804952849,1.11297101,2707.7,2707.3,0.00653674]
[1646804953851,1.11297101,2707.7,2706.8,0.07740605]
[1646804954055,1.11297101,2707.7,2707.3,0.00653677]
[1646804955060,1.11297101,2707.7,2706.9,6.68546046]
[1646804955301,1.1667,2707.9,2707.3,0.00653677]
[1646804956200,1.1667,2707.9,2707.3,0.88990777]
[1646804956399,2.08012102,2708.0,2707.3,0.88990777]
[1646804956698,2.08012102,2708.0,2707.3,0.89622885]
[1646804956899,0.92368,2708.0,2707.3,0.89622885]
[1646804957103,0.00222072,2708.1,2707.3,0.89622885]
[1646804957299,0.00222072,2708.1,2707.3,0.88990777]
[1646804957498,1.1417,2708.3,2707.4,6.68546046]
[1646804957698,0.00222076,2708.1,2707.4,6.68546046]
[1646804958702,1.1417,2708.3,2707.4,6.68546046]
[1646804958965,1.1417,2708.3,2707.4,7.05306046]
[1646804959153,1.1417,2708.3,2707.9,1.22198148]
[1646804959355,1.6140358,2708.7,2707.9,1.22198148]
[1646804960154,0.00222101,2708.4,2707.6,0.00290015]
[1646804960356,0.00222101,2708.4,2707.5,7.80826163]
[1646804960559,0.00222101,2708.4,2707.5,7.13046046]
[1646804960757,0.00222101,2708.4,2707.5,7.31496046]
[1646804960959,0.67154052,2708.6,2707.6,6.68546046]
[1646804961158,0.67154052,2708.6,2707.7,0.31793146]
[1646804961159,0.92635335,2708.1,2707.7,0.31793146]
[1646804961360,1.17527327,2708.0,2707.7,0.31793146]
[1646804961758,1.17527327,2708.0,2707.8,0.31793146]
[1646804961959,1.17527327,2708.0,2707.9,0.31793146]
[1646804962159,1.17527327,2708.0,2707.5,0.31793146]
[1646804965504,1.17527327,2707.9,2707.5,0.31793146]
[1646804965709,0.00222084,2708.1,2707.5,0.31793146]
[1646804965906,1.17616615,2708.3,2707.5,0.31793146]
[1646804966306,0.00192839,2708.1,2707.5,0.31793146]
[1646804966550,0.00192839,2708.1,2707.7,1.09555678]
[1646804966748,0.00192839,2708.1,2707.8,0.31793146]
[1646804966950,1.17616615,2708.3,2707.8,0.31793146]
[1646804967350,0.00192849,2708.1,2707.8,0.31793146]
[1646804967749,0.00192849,2708.1,2707.9,0.31793146]
[1646804967949,0.00192849,2708.1,2708.0,0.31793146]
[1646804968149,1.17616615,2708.3,2708.0,0.31793146]
[1646804968351,1.17616615,2708.3,2708.1,0.31793146]
[1646804968553,0.00192853,2708.1,2707.6,4.73485058]
[1646804968751,0.50164742,2708.0,2707.7,0.31804115]
[1646804968951,1.17616615,2707.9,2707.7,0.31804115]
[1646804971005,4.67616615,2707.9,2707.7,0.31804115]
[1646804971203,1.17616615,2707.8,2707.7,0.31804115]
[1646804971604,4.67616615,2707.9,2707.7,0.31804115]
[1646804971803,1.56723033,2708.0,2707.7,0.31804115]
[1646804971804,1.17616615,2707.8,2707.7,0.31804115]
[1646804972304,1.17616615,2707.9,2707.4,0.31804115]
[1646804973206,1.17616615,2707.9,2707.5,0.31804115]
[1646804973405,1.17616615,2707.9,2707.6,0.31804115]
[1646804973606,1.17616615,2707.9,2707.7,0.31804115]
[1646804973806,1.17616615,2707.9,2707.8,0.31804115]
[1646804974061,0.50164742,2708.0,2707.3,0.00612182]
[1646804974265,0.50164742,2708.0,2707.2,4.62280117]
[1646804974661,0.00222093,2708.1,2707.5,0.67780117]
[1646804974865,0.00222093,2708.1,2707.7,12.27540117]
[1646804975062,0.00222093,2708.1,2708.0,12.27540117]
[1646804975063,2.093e-05,2708.1,2708.0,12.27540117]
[1646804975262,2.093e-05,2708.1,2708.0,15.5426]
[1646804975558,0.359781,2709.0,2708.0,16.73982403]
[1646804975763,0.359781,2709.0,2708.3,0.3676]
[1646804975960,0.359781,2709.0,2708.5,0.3676]
[1646804976158,0.359781,2709.0,2708.6,3.8676]
[1646804976557,0.359781,2709.0,2708.6,0.3676]
[1646804977362,0.359781,2709.0,2708.6,3.5]
[1646804977560,0.359781,2709.0,2708.5,0.445]
[1646804977805,0.359781,2709.0,2708.3,0.1844]
[1646804979411,0.00221551,2708.8,2708.3,0.1844]
[1646804979812,1.11421788,2708.6,2708.3,0.1844]
[1646804980009,1.11421788,2708.6,2708.2,1.0]
[1646804980209,1.11421788,2708.6,2707.8,8.24690314]
[1646804980610,1.11421788,2708.6,2707.8,9.43116229]
[1646804980611,1.11643339,2708.6,2707.8,9.43116229]
[1646804980809,1.11643339,2708.6,2707.8,8.75344645]
[1646804981210,0.00221551,2708.6,2707.8,9.43116229]
[1646804981462,0.359781,2709.0,2707.9,1.29072]
[1646804981652,1.551e-05,2708.3,2708.0,3.945]
[1646804981854,1.551e-05,2708.3,2708.2,3.0]
[1646804982053,1.551e-05,2708.3,2708.2,19.5426]
[1646804982252,1.551e-05,2708.3,2708.2,18.52031584]
[1646804982454,1.551e-05,2708.3,2708.2,18.65925915]
[1646804982652,0.00120553,2709.2,2708.2,18.65925915]
[1646804982853,0.00120553,2709.2,2708.4,11.5976]
[1646804983057,0.00120553,2709.2,2708.6,0.3676]
[1646804983254,0.81235249,2709.3,2708.8,6.0]
[1646804983455,1.83014052,2710.1,2708.9,0.445]
[1646804983654,1.83014052,2710.1,2709.0,3.5]
[1646804983855,1.1586,2710.1,2709.0,3.5]
[1646804984060,1.83014052,2710.1,2709.0,3.5]
[1646804984660,1.22072232,2709.4,2709.0,3.5]
[1646804984860,1.22072232,2709.4,2708.9,3.945]
[1646804985300,0.00221001,2709.3,2708.9,3.945]
[1646804985709,0.00221001,2709.3,2708.6,2.41975507]
[1646804986303,1.22072232,2709.4,2708.6,2.41879068]
[1646804986500,1.22072232,2709.4,2708.5,6.6911]
[1646804986703,0.88192332,2708.9,2708.5,2.7855]
[1646804987401,0.88192332,2708.9,2708.3,0.0008]
[1646804987802,0.00221001,2708.8,2708.3,0.0008]
[1646804988402,0.00221001,2708.8,2708.3,0.3684]
[1646804988703,1.1357,2709.7,2708.5,0.3676]
[1646804988958,1.02490153,2709.5,2708.8,0.90169982]
[1646804989551,1.1357,2709.7,2708.9,3.5]
[1646804989855,0.13819997,2710.1,2708.9,3.5]
[1646804989856,0.80974049,2710.1,2708.9,3.5]
[1646804990652,0.67154052,2710.0,2708.9,3.5]
[1646804990856,0.67154052,2710.0,2708.7,0.445]
[1646804991053,0.67154052,2710.0,2708.8,3.5]
[1646804991653,1.13890522,2709.5,2708.8,4.66804779]
[1646804992056,1.13890522,2709.5,2708.7,0.445]
[1646804993099,1.13890522,2709.5,2708.8,3.5]
[1646804993299,1.13890522,2709.5,2708.7,0.445]
[1646804993602,1.13890522,2709.5,2708.7,3.945]
[1646804993802,0.00220743,2709.2,2708.7,3.945]
[1646804994008,0.00220743,2709.2,2708.8,0.34973474]
[1646804994309,0.00220743,2709.2,2708.9,0.445]
[1646804994706,1.13866535,2709.8,2708.9,0.445]
[1646804994906,0.00220743,2709.1,2709.0,3.5]
[1646804995106,0.00220743,2709.1,2708.7,3.945]
[1646804995307,0.00220743,2709.1,2708.8,11.94736607]
[1646804995508,0.00220743,2709.1,2709.0,0.3676]
[1646804995709,0.00220743,2709.1,2709.0,4.3126]
[1646804995909,1.13878626,2710.0,2709.0,4.3126]
[1646804996310,0.00220743,2709.1,2709.0,0.445]
[1646804997148,1.08108913,2709.4,2708.7,3.5]
[1646804997149,1.13899012,2709.3,2708.7,3.5]
[1646804997349,0.00220743,2709.2,2708.6,0.445]
[1646804997549,0.00220743,2709.2,2708.7,0.34987212]
[1646804998351,1.13899012,2709.3,2708.7,0.34987212]
[1646804998554,1.13899012,2709.3,2708.4,3.2478]
[1646804998555,0.00220743,2709.1,2708.4,3.2478]
[1646804998756,0.00220743,2709.1,2708.5,0.34988507]
[1646804999458,1.21859135,2708.9,2708.6,0.34988507]
[1646804999657,0.9231686,2709.6,2708.3,6.51858088]
[1646804999658,0.9231686,2709.6,2708.4,3.5]
[1646804999857,0.9231686,2709.6,2708.3,4.12098088]
[1646804999858,0.00220743,2708.9,2708.5,0.34999398]
[1646805000058,0.00220743,2708.9,2708.6,0.34999398]
[1646805000299,0.00220743,2708.9,2708.3,2.86500425]
[1646805000498,0.00220743,2708.9,2708.4,0.35008572]
[1646805000698,1.13922558,2709.3,2708.4,0.35008572]
[1646805001099,0.00220743,2708.7,2708.4,0.35008572]
[1646805001900,0.87598164,2708.8,2708.5,0.35008572]
[1646805002097,0.87598164,2708.8,2708.2,2.42000425]
[1646805002300,0.00220743,2708.7,2708.3,0.35962269]
[1646805003098,0.87598164,2708.8,2708.4,0.35962269]
[1646805003300,0.87598164,2708.8,2707.9,1.12775467]
[1646805003501,0.00220742,2708.6,2708.0,0.35970346]
[1646805003961,0.00220742,2708.6,2708.1,0.3676]
[1646805004153,0.00220742,2708.6,2708.2,0.35970346]
[1646805004350,3.78714679,2709.0,2708.3,0.35970346]
[1646805004550,3.78714679,2709.0,2708.4,0.35970346]
[1646805004750,0.00220726,2708.6,2708.5,0.35970346]
[1646805005151,0.00220726,2708.6,2708.1,0.35970346]
[1646805005550,4.71727192,2709.0,2708.1,0.35970346]
[1646805005750,0.00220743,2708.7,2708.1,0.35970346]
[1646805006555,0.00220743,2708.7,2708.2,0.35967911]
[1646805006753,4.71727192,2709.0,2708.3,0.35967911]
[1646805006952,4.71727192,2709.0,2708.4,1.32025401]
[1646805006953,0.00220734,2708.6,2708.4,1.32025401]
[1646805007151,0.00220734,2708.6,2708.5,0.35967911]
[1646805007998,4.71727192,2709.0,2708.2,0.35967911]
[1646805008200,0.00220743,2708.7,2708.3,0.35967911]
[1646805008400,0.00220743,2708.7,2708.4,0.35967911]
[1646805008601,0.00220743,2708.7,2708.5,0.35967911]
[1646805008800,0.00220743,2708.7,2708.0,1.53444244]
[1646805009003,0.00220743,2708.7,2708.1,0.3598951]
[1646805009206,1.13085544,2708.9,2708.1,0.3598951]
[1646805009405,0.00218718,2708.7,2708.1,0.3598951]
[1646805010405,1.13085544,2708.9,2708.1,0.3598951]
[1646805010604,0.00218709,2708.6,2708.1,0.3598951]
[1646805011464,1.13085544,2708.9,2708.1,0.3598951]
[1646805011753,0.00218705,2708.6,2708.1,0.3598951]
[1646805012150,0.00218705,2708.6,2708.1,12.5898951]
[1646805012350,0.00218705,2708.6,2708.2,0.3598951]
[1646805012551,0.00218705,2708.6,2708.3,0.3598951]
[1646805012853,1.13085544,2708.9,2708.4,0.3598951]
[1646805013052,0.0022073,2708.6,2708.5,0.3598951]
[1646805013252,0.0022073,2708.6,2708.0,1.53444244]
[1646805013452,0.0022073,2708.6,2708.0,1.71894244]
[1646805014056,4.71727192,2709.0,2708.0,1.53444244]
[1646805014260,0.00220726,2708.6,2708.0,1.53444244]
[1646805014457,0.00220726,2708.6,2708.0,5.21894244]
[1646805014660,0.00220726,2708.6,2708.0,1.71894244]
[1646805014859,0.00220726,2708.6,2708.0,1.53444244]
[1646805015303,4.71727192,2709.0,2708.0,2.53444244]
[1646805015504,0.00220726,2708.6,2708.0,1.53444244]
[1646805015705,0.00220726,2708.6,2708.0,5.03444244]
[1646805016305,4.71727192,2709.0,2708.0,6.03444244]
[1646805016707,0.00220726,2708.6,2708.0,6.70974673]
[1646805016909,0.00220726,2708.6,2708.0,5.03444244]
[1646805017507,4.71727192,2709.0,2708.0,5.03444244]
[1646805018008,4.71727192,2709.0,2708.0,1.53444244]
[1646805018009,0.00220726,2708.6,2708.0,1.53444244]
[1646805018609,0.00220726,2708.6,2708.0,5.03444244]
[1646805018810,4.71727192,2709.0,2708.0,5.03444244]
[1646805019060,0.00220726,2708.6,2708.0,5.03444244]
[1646805019859,5.75641244,2709.0,2708.0,1.53444244]
[1646805020058,5.38881244,2709.0,2708.0,1.53444244]
[1646805020259,0.00220726,2708.6,2708.0,5.03444244]
[1646805021060,5.08487192,2709.0,2708.0,5.03444244]
[1646805021262,4.71727192,2709.0,2708.0,5.03444244]
[1646805021459,0.00220726,2708.6,2708.0,5.70974673]
[1646805021863,0.00220726,2708.6,2708.1,0.67530429]
[1646805022065,0.00220726,2708.6,2708.2,4.42297]
[1646805022066,0.00115045,2708.6,2708.2,4.42297]
[1646805022463,4.71727192,2709.0,2708.2,4.42297]
[1646805022705,0.0022073,2708.6,2708.2,5.09827429]
[1646805023509,3.78714679,2709.0,2708.2,1.59827429]
[1646805023809,3.78714679,2709.0,2708.2,5.09827429]
[1646805024210,1.17929196,2709.1,2708.2,5.09827429]
[1646805024613,1.17929196,2709.1,2708.2,1.59827429]
[1646805024812,0.5,2709.0,2708.1,0.85980429]
[1646805025313,1.036082,2708.6,2707.9,1.85840429]
[1646805025613,1.036082,2708.6,2707.8,0.67530429]
[1646805026450,1.036082,2708.6,2707.8,0.0065426]
[1646805027258,1.036082,2708.6,2707.7,1.61608434]
[1646805027458,1.036082,2708.6,2707.8,0.00654258]
[1646805028456,1.036082,2708.6,2707.7,1.61608434]
[1646805028660,1.036082,2708.6,2707.8,0.00654258]
[1646805029659,1.036082,2708.6,2707.7,0.67530429]
[1646805029861,1.036082,2708.6,2707.8,0.00654258]
[1646805030905,1.036082,2708.6,2707.7,4.17530429]
[1646805031107,1.036082,2708.6,2707.8,0.00632668]
[1646805031707,1.24380443,2708.8,2707.8,0.00632668]
[1646805031909,1.24380443,2708.8,2707.9,0.67530429]
[1646805032110,1.14931335,2708.8,2708.0,3.5]
[1646805032307,1.15151778,2708.8,2708.0,3.5]
[1646805033106,1.15151778,2708.8,2708.1,1.07223439]
[1646805033107,1.14931335,2708.8,2708.1,1.07223439]
[1646805033308,1.12587445,2708.7,2708.2,0.37021556]
[1646805033709,1.12587445,2708.6,2708.2,0.37021556]
[1646805033948,1.12587445,2708.5,2708.2,0.37021556]
[1646805034152,0.00220459,2708.8,2708.2,0.37021556]
[1646805034153,1.12587445,2708.4,2708.2,0.37021556]
[1646805034354,0.93165901,2708.9,2708.2,0.37021556]
[1646805034551,1.1279646,2708.8,2708.2,0.37021556]
[1646805035157,1.1279646,2708.8,2708.2,0.40546292]
[1646805035354,1.1279646,2708.8,2708.3,0.37021556]
[1646805035555,1.12576001,2708.8,2708.4,0.37021556]
[1646805035854,1.12796468,2708.8,2708.5,0.37021556]
[1646805036054,1.12796468,2708.8,2708.6,0.37021556]
[1646805036254,0.00220467,2708.8,2708.7,0.37021556]
[1646805036856,0.67154052,2709.1,2708.7,0.37021556]
[1646805037056,0.00220479,2708.9,2708.2,0.03524736]
[1646805037258,0.00220479,2708.9,2708.3,0.36565208]
[1646805037710,1.13271998,2708.9,2708.3,0.36565208]
[1646805037897,1.13051519,2708.8,2708.3,0.36565208]
[1646805038097,1.05630498,2709.0,2708.3,0.40089944]
[1646805038098,1.13051519,2708.7,2708.3,0.40089944]
[1646805038298,1.13051519,2708.6,2708.4,0.36565208]
[1646805038498,1.13051519,2708.5,2708.4,0.36565208]
[1646805039102,1.13051519,2708.5,2708.4,0.40089944]
[1646805042350,1.13051519,2708.5,2708.4,0.03524736]
[1646805042550,1.13051519,2708.5,2708.4,0.41633281]
[1646805042753,1.13051519,2708.5,2708.4,0.41637029]
[1646805043354,1.13051519,2708.5,2708.4,0.03524736]
[1646805043554,1.13051519,2708.5,2708.4,0.3663684]
[1646805043755,1.13051519,2708.5,2707.9,5.34655193]
[1646805043954,1.19270463,2708.8,2707.9,5.34655193]
[1646805043955,1.1905,2708.8,2707.9,5.34655193]
[1646805044355,1.19270463,2708.8,2707.9,5.34655193]
[1646805045305,1.1905,2708.8,2707.9,5.34655193]
[1646805045507,1.19270455,2708.8,2708.0,0.67530429]
[1646805045705,1.19270455,2708.8,2708.1,3.5]
[1646805046504,1.1905,2708.8,2708.1,3.5]
[1646805046704,1.19270463,2708.8,2708.1,3.5]
[1646805047106,1.19270463,2708.8,2708.1,4.17530429]
[1646805047606,1.1905,2708.8,2708.1,4.17530429]
[1646805047805,1.19270463,2708.8,2708.1,0.67530429]
[1646805048948,1.1905,2708.8,2708.1,0.67530429]
[1646805049152,1.19270463,2708.8,2708.1,0.67530429]
[1646805050055,1.1905,2708.8,2708.1,0.67530429]
[1646805050254,1.19270463,2708.8,2708.1,0.67530429]
[1646805051057,1.19270463,2708.8,2708.4,1.18065061]
[1646805051259,0.67154052,2709.1,2708.4,1.18065061]
[1646805051456,0.00220463,2708.8,2708.1,0.67530429]
[1646805052457,0.67154052,2709.1,2708.1,0.67530429]
[1646805052708,0.90310204,2708.8,2708.1,1.61333746]
[1646805053608,0.67154052,2709.1,2708.2,0.67530429]
[1646805053802,4.52417069,2709.2,2708.3,0.3676]
[1646805053803,4.82811121,2709.2,2708.3,0.3676]
[1646805054004,4.82811121,2709.2,2708.5,0.3676]
[1646805054005,0.00220463,2708.8,2708.5,0.3676]
[1646805054302,0.00109918,2708.8,2708.5,1.48790429]
[1646805054703,0.00109918,2708.8,2708.5,0.8126]
[1646805054902,1.2438,2709.3,2708.7,0.985592]
[1646805055103,0.67154052,2709.4,2708.7,0.985592]
[1646805056206,0.00198369,2709.2,2708.7,0.985592]
[1646805056649,0.00198369,2709.2,2708.4,0.67530429]
[1646805056854,0.00198369,2709.2,2708.3,2.28790429]
[1646805057255,0.67154052,2709.3,2708.3,2.28790429]
[1646805057656,0.00198369,2708.9,2708.3,3.05420147]
[1646805057856,0.00198369,2708.9,2708.3,1.88660147]
[1646805058056,0.00198369,2708.9,2708.3,0.67530429]
[1646805058256,0.00198369,2708.9,2708.2,0.67530429]
[1646805058456,1.03302259,2709.0,2708.2,0.67530429]
[1646805058656,0.00198361,2708.8,2708.2,0.67530429]
[1646805058860,0.00198361,2708.8,2708.1,6.07070429]
[1646805059060,0.00198361,2708.8,2708.1,7.26924484]
[1646805059756,1.03302259,2709.0,2708.1,7.26924484]
[1646805059957,0.00220181,2708.8,2708.1,7.26924484]
[1646805060210,0.00220181,2708.8,2708.2,0.67530429]
[1646805060411,0.00220181,2708.8,2708.1,5.3954]
[1646805060901,3.5,2708.9,2708.1,5.3954]
[1646805061100,0.00220185,2708.8,2708.1,5.3954]
[1646805062099,4.4234223,2708.9,2708.1,5.3954]
[1646805062400,0.00220181,2708.8,2708.1,5.3954]
[1646805063205,4.4234223,2708.9,2708.1,5.3954]
[1646805063507,0.00220181,2708.8,2708.1,5.3954]
[1646805063706,1.10281412,2708.8,2708.2,0.39722222]
[1646805064352,1.10281412,2708.8,2708.4,0.86752641]
[1646805064353,1.10061231,2708.8,2708.4,0.86752641]
[1646805064552,1.70456311,2709.0,2708.5,0.39722222]
[1646805064553,1.10061231,2708.7,2708.5,0.39722222]
[1646805064751,0.67154052,2709.1,2708.6,0.39722222]
[1646805064752,0.00220185,2708.8,2708.6,0.39722222]
[1646805065152,0.00220185,2708.8,2708.7,0.39722222]
[1646805065559,1.10289947,2708.8,2708.7,0.39722222]
[1646805065756,1.10069762,2708.8,2708.7,0.39722222]
[1646805065956,0.00220202,2708.9,2708.6,1.03900382]
[1646805066158,0.00220202,2708.9,2708.7,0.39722222]
[1646805066556,0.00220202,2708.9,2708.8,0.39722222]
[1646805066759,1.10069762,2709.1,2708.8,0.39722222]
[1646805066956,1.10069762,2709.1,2708.9,0.39722222]
[1646805067156,1.10069762,2709.1,2709.0,0.39722222]
[1646805067556,1.10069762,2709.1,2708.5,0.39722222]
[1646805067798,1.10069762,2709.0,2708.5,0.39722222]
[1646805067998,1.10069762,2708.9,2708.5,0.39722222]
[1646805068200,1.10069762,2708.8,2708.5,0.39722222]
[1646805068398,1.10069762,2708.7,2708.6,0.39722222]
[1646805068798,0.00220202,2708.9,2708.6,0.39722222]
[1646805069002,0.00220202,2708.9,2708.7,0.3971537]
[1646805069201,0.95301474,2708.9,2708.8,0.3971537]
[1646805069405,2.05591438,2708.9,2708.8,0.3971537]
[1646805069602,2.05591438,2708.9,2708.3,0.3971537]
[1646805069802,1.10069762,2708.8,2708.3,0.3971537]
[1646805070405,1.10069762,2708.7,2708.3,0.3971537]
[1646805070604,1.10069762,2708.6,2708.3,0.3971537]
[1646805070803,1.10069762,2708.5,2708.3,0.3971537]
[1646805071004,0.00220189,2708.8,2708.3,0.3971537]
[1646805071656,1.1007525,2709.0,2708.3,1.07245799]
[1646805071857,0.00220189,2708.8,2708.3,1.07245799]
[1646805072856,1.1007525,2709.0,2708.3,1.07245799]
[1646805073057,0.00220189,2708.8,2708.3,1.07245799]
[1646805073258,0.00220189,2708.8,2708.3,4.57245799]
[1646805073760,0.00220189,2708.8,2708.4,0.3971537]
[1646805074158,1.1007525,2709.0,2708.4,0.3971537]
[1646805074360,0.00220189,2708.8,2708.4,0.3971537]
[1646805074561,0.00220189,2708.8,2708.5,0.3971537]
[1646805075213,1.1007525,2709.0,2708.6,0.3971537]
[1646805075401,1.1007525,2709.0,2708.7,0.3971537]
[1646805075601,1.1007525,2709.0,2708.3,4.17530429]
[1646805075602,0.00220197,2708.8,2708.3,0.67530429]
[1646805075802,0.00220197,2708.8,2708.3,1.07259765]
[1646805076203,0.00220197,2708.8,2708.4,0.39729336]
[1646805076401,1.1007525,2708.9,2708.5,0.39729336]
[1646805076602,1.1007525,2708.9,2708.6,0.39729336]
[1646805076801,0.00220189,2708.8,2708.7,0.39729336]
[1646805077003,0.00220189,2708.8,2708.3,3.897337]
[1646805077205,0.00220189,2708.8,2708.4,0.397337]
[1646805077402,1.10295439,2708.8,2708.4,0.397337]
[1646805077606,1.1007525,2708.7,2708.5,3.5]
[1646805077807,1.88104052,2709.1,2708.6,0.397337]
[1646805078005,0.00177543,2708.8,2708.3,3.5]
[1646805078205,0.00177543,2708.8,2708.4,0.39733018]
[1646805078806,1.10124993,2709.0,2708.5,0.39733018]
[1646805079060,0.00177543,2708.8,2708.6,0.39733018]
[1646805079261,0.00177543,2708.8,2708.7,0.39735112]
[1646805079460,0.00177543,2708.8,2708.4,0.39735059]
[1646805079662,0.00177543,2708.8,2708.5,0.39735239]
[1646805079864,0.00177543,2708.8,2708.6,0.39735239]
[1646805080063,1.10124993,2709.0,2708.3,0.39736833]
[1646805080262,1.10124993,2709.0,2708.4,0.39736814]
[1646805080263,0.00177543,2708.8,2708.4,0.39736814]
[1646805080461,0.00177543,2708.8,2708.5,0.39736814]
[1646805080660,0.00177543,2708.8,2708.2,1.15449809]
[1646805080661,0.00177543,2708.8,2708.6,0.39736814]
[1646805080863,0.00177543,2708.8,2708.3,3.5]
[1646805081061,0.00177543,2708.8,2708.4,0.39736923]
[1646805081264,1.77279045,2709.0,2708.5,0.39736923]
[1646805081464,0.00177549,2708.8,2708.2,1.15449809]
[1646805081665,0.00177549,2708.8,2708.3,0.39737047]
[1646805082265,0.00177549,2708.8,2708.4,0.39737047]
[1646805082468,1.77279045,2709.0,2708.5,0.39737047]
[1646805082711,0.00185528,2708.8,2708.6,0.39737047]
[1646805082901,0.00185528,2708.8,2708.1,0.67530429]
[1646805083106,0.00185528,2708.8,2708.2,0.40684616]
[1646805083505,0.00185528,2708.8,2708.3,3.5]
[1646805083707,1.10124993,2708.8,2708.4,0.40684616]
[1646805083906,1.10124993,2708.7,2708.5,0.40684616]
[1646805084107,1.10124993,2708.6,2708.2,0.67530429]
[1646805084305,1.09221277,2708.5,2708.2,1.08212608]
[1646805084506,1.0922117,2708.4,2708.2,2.08212608]
[1646805084708,0.00185524,2708.8,2708.5,0.59394389]
[1646805084907,1.08848952,2708.9,2708.6,0.40682179]
[1646805085209,1.88104052,2709.1,2708.6,0.40682179]
[1646805085210,1.09034466,2708.8,2708.6,0.40682179]
[1646805085406,1.08848952,2708.7,2708.6,0.40682179]
[1646805085607,0.00185514,2708.8,2708.6,0.40682179]
[1646805086005,1.76003004,2709.1,2708.6,0.40682179]
[1646805086458,0.00184071,2708.8,2708.6,0.40682179]
[1646805087259,0.67154052,2709.0,2708.6,0.40682179]
[1646805087459,0.00184071,2708.8,2708.6,1.6177245]
[1646805087660,0.00184071,2708.8,2708.7,0.40682179]
[1646805087863,1.09033023,2708.8,2708.7,0.40682179]
[1646805088262,1.09033023,2708.8,2708.7,3.90682179]
[1646805088462,1.09033023,2708.8,2708.7,0.40682179]
[1646805088463,1.08848952,2708.8,2708.7,0.40682179]
[1646805088661,1.08848952,2708.8,2708.6,0.40682179]
[1646805088861,1.08848952,2708.7,2708.6,0.40682179]
[1646805092306,2.23787882,2708.7,2708.6,0.40682179]
[1646805092905,1.08848952,2708.7,2708.6,0.40682179]
[1646805102853,1.08848952,2708.7,2708.6,0.40548899]
[1646805104762,1.08848952,2708.7,2708.5,0.59394389]
[1646805105058,0.67338344,2708.8,2708.5,0.59394389]
[1646805105311,0.67154052,2708.8,2708.5,0.59394389]
[1646805105514,0.67338341,2708.8,2708.5,0.59394389]
[1646805106114,0.00184289,2708.8,2708.5,0.59394389]
[1646805106512,0.67154052,2708.9,2708.5,0.59394389]
[1646805106715,0.00184292,2708.8,2708.5,0.59394389]
[1646805107514,4.17338344,2708.8,2708.5,0.59394389]
[1646805107714,4.17154052,2708.8,2708.5,0.59394389]
[1646805108015,4.17338344,2708.8,2708.5,0.59394389]
[1646805108213,0.67154052,2708.7,2708.5,0.59394389]
[1646805108812,0.99573781,2708.6,2708.5,0.59394389]
[1646805112724,0.00219846,2708.8,2708.5,0.59394389]
[1646805112914,0.67373898,2708.8,2708.5,0.59394389]
[1646805113515,0.00219846,2708.8,2708.5,0.59394389]
[1646805113714,1.06416578,2708.8,2708.5,0.59394389]
[1646805113917,1.06636432,2708.8,2708.5,0.59394389]
[1646805115020,1.7357063,2708.8,2708.5,0.59394389]
[1646805115222,1.73790827,2708.8,2708.5,0.59394389]
[1646805115820,1.06636775,2708.8,2708.5,0.59394389]
[1646805116020,1.06416578,2708.8,2708.5,0.59394389]
[1646805116458,1.06636775,2708.8,2708.5,0.59394389]
[1646805117256,1.06416578,2708.8,2708.5,0.59394389]
[1646805117659,0.00220197,2708.8,2708.5,0.59394389]
[1646805118559,0.67154052,2709.0,2708.5,0.59394389]
[1646805118761,0.00220197,2708.8,2708.5,0.59394389]
[1646805119766,1.84918717,2709.0,2708.5,0.59394389]
[1646805119967,0.00220197,2708.8,2708.5,0.59394389]
[1646805121007,0.67154052,2709.0,2708.5,0.59394389]
[1646805121207,0.00220197,2708.8,2708.5,0.59394389]
[1646805122013,1.8260251,2709.0,2708.5,0.59394389]
[1646805122414,0.00220197,2708.8,2708.5,0.59394389]
[1646805122913,0.00220197,2708.8,2708.6,0.44437919]
[1646805123314,0.67154052,2709.1,2708.6,0.44437919]
[1646805123515,0.00220197,2708.8,2708.6,0.44437919]
[1646805124558,0.67154052,2709.1,2708.6,0.44437919]
[1646805124758,1.1527,2709.3,2708.8,0.00158613]
[1646805124759,1.05504385,2709.0,2708.8,0.00158613]
[1646805124959,1.05504385,2708.9,2708.8,0.00158613]
[1646805125159,1.1527,2709.3,2708.9,0.94144115]
[1646805125359,1.05528716,2709.2,2709.0,0.44437919]
[1646805125558,1.05528716,2709.1,2709.0,0.44437919]
[1646805125760,0.67154052,2709.6,2709.0,0.44437919]
[1646805125959,0.00220202,2709.2,2709.0,0.44437919]
[1646805126961,0.67154052,2709.6,2709.0,0.44437919]
[1646805127164,0.00220202,2709.2,2709.0,0.44437919]
[1646805128104,0.67154052,2709.7,2709.0,0.44437919]
[1646805128306,0.00220202,2709.2,2709.0,0.44437919]
[1646805128907,0.00220202,2709.2,2709.1,0.08546987]
[1646805129108,0.00220202,2709.2,2709.1,0.52984906]
[1646805129310,1.05528716,2709.5,2709.1,0.52984906]
[1646805129507,0.00220202,2709.2,2709.1,0.08546987]
[1646805129711,0.00119311,2709.2,2709.1,0.08546987]
[1646805129907,0.00119311,2709.2,2709.1,0.54791636]
[1646805129908,1.05648027,2709.2,2709.1,0.54791636]
[1646805130509,1.05528716,2709.2,2709.1,0.54791636]
[1646805130713,1.05528716,2709.2,2709.1,0.54776288]